[Event "Early-Titled-Tuesday-Blitz-September-05-2023"]
[Site "Chess.com"]
[Date "2023.09.05"]
[Round "3"]
[White "GamayevOleg"]
[Black "lexisvar"]
[Result "1/2-1/2"]
[WhiteElo "2619"]
[BlackElo "2484"]
[TimeControl "180+1"]
[EndTime "8:29:01 PDT"]
[Termination "Game drawn by repetition"]

1. e4 {[%clk 0:02:52.6]} 1... c5 {[%clk 0:02:59.7]} 2. Nf3 {[%clk 0:02:51.9]}
2... d6 {[%clk 0:02:59.9]} 3. d4 {[%clk 0:02:52.5]} 3... cxd4 {[%clk 0:03:00.4]}
4. Nxd4 {[%clk 0:02:53.4]} 4... Nf6 {[%clk 0:03:00.7]} 5. Nc3 {[%clk 0:02:53.6]}
5... a6 {[%clk 0:03:01.2]} 6. Bg5 {[%clk 0:02:48.1]} 6... e6 {[%clk 0:03:00.7]}
7. f4 {[%clk 0:02:47.7]} 7... Nbd7 {[%clk 0:03:00.8]} 8. Qf3 {[%clk 0:02:46.5]}
8... Qc7 {[%clk 0:03:00.9]} 9. O-O-O {[%clk 0:02:43.5]} 9... b5 {[%clk 0:03:01]}
10. g4 {[%clk 0:02:30.4]} 10... Bb7 {[%clk 0:02:57.7]} 11. Bxf6 {[%clk
0:02:28.2]} 11... Nxf6 {[%clk 0:02:51.9]} 12. a3 {[%clk 0:02:27.4]} 12... g5
{[%clk 0:02:47]} 13. fxg5 {[%clk 0:02:02.1]} 13... Nd7 {[%clk 0:02:46.9]} 14.
Be2 {[%clk 0:01:52.4]} 14... Ne5 {[%clk 0:02:46.7]} 15. Qf6 {[%clk 0:01:50]}
15... Rg8 {[%clk 0:02:45.8]} 16. Nxe6 {[%clk 0:01:50]} 16... Qb6 {[%clk
0:01:56.1]} 17. Nxf8 {[%clk 0:01:43.7]} 17... Kxf8 {[%clk 0:01:55]} 18. Rxd6
{[%clk 0:01:38.1]} 18... Qe3+ {[%clk 0:01:55.1]} 19. Kb1 {[%clk 0:01:38.6]}
19... Qxg5 {[%clk 0:01:52.1]} 20. Rf1 {[%clk 0:01:28.4]} 20... Qxf6 {[%clk
0:01:50.7]} 21. Rdxf6 {[%clk 0:01:29.3]} 21... Rg6 {[%clk 0:01:41.5]} 22. R6f5
{[%clk 0:01:25]} 22... Re8 {[%clk 0:01:38.3]} 23. h3 {[%clk 0:01:25.3]} 23...
Re7 {[%clk 0:01:32.4]} 24. Bd3 {[%clk 0:01:24.8]} 24... Bc8 {[%clk 0:01:27.3]}
25. Rf6 {[%clk 0:01:20.4]} 25... Kg7 {[%clk 0:01:25.4]} 26. R6f2 {[%clk
0:01:17.4]} 26... Bb7 {[%clk 0:01:19.1]} 27. Kc1 {[%clk 0:01:13.8]} 27... Rd6
{[%clk 0:01:16.9]} 28. Rd2 {[%clk 0:01:11.6]} 28... Red7 {[%clk 0:01:16]} 29.
Rfd1 {[%clk 0:01:09.7]} 29... Nf3 {[%clk 0:01:16.2]} 30. Rf2 {[%clk 0:01:09]}
30... Ne5 {[%clk 0:01:14.7]} 31. Be2 {[%clk 0:01:08.8]} 31... Rxd1+ {[%clk
0:01:11.2]} 32. Bxd1 {[%clk 0:01:09.7]} 32... Rd4 {[%clk 0:01:11.3]} 33. Rf5
{[%clk 0:01:07.7]} 33... Nc4 {[%clk 0:01:02.6]} 34. Bf3 {[%clk 0:01:00.7]} 34...
Nd6 {[%clk 0:00:48.4]} 35. Rg5+ {[%clk 0:00:53.3]} 35... Kf8 {[%clk 0:00:46]}
36. Rh5 {[%clk 0:00:53.7]} 36... Kg7 {[%clk 0:00:42.7]} 37. Ne2 {[%clk
0:00:46.5]} 37... Rc4 {[%clk 0:00:40.9]} 38. b3 {[%clk 0:00:41.2]} 38... Rc8
{[%clk 0:00:39.3]} 39. Ng3 {[%clk 0:00:41.3]} 39... Rc3 {[%clk 0:00:37.2]} 40.
Nf5+ {[%clk 0:00:39.8]} 40... Nxf5 {[%clk 0:00:37.1]} 41. Rxf5 {[%clk
0:00:40.7]} 41... Bc8 {[%clk 0:00:34.7]} 42. Kd2 {[%clk 0:00:38.3]} 42... Rc7
{[%clk 0:00:31.1]} 43. Rf4 {[%clk 0:00:38.3]} 43... Be6 {[%clk 0:00:31.2]} 44.
Be2 {[%clk 0:00:37.3]} 44... Rd7+ {[%clk 0:00:30.5]} 45. Bd3 {[%clk 0:00:37.6]}
45... Rc7 {[%clk 0:00:31.4]} 46. e5 {[%clk 0:00:38]} 46... Rc5 {[%clk
0:00:31.1]} 47. Re4 {[%clk 0:00:38.4]} 47... h6 {[%clk 0:00:31.1]} 48. Re3
{[%clk 0:00:38]} 48... a5 {[%clk 0:00:29.6]} 49. b4 {[%clk 0:00:38.5]} 49...
axb4 {[%clk 0:00:29.4]} 50. axb4 {[%clk 0:00:39.4]} 50... Rd5 {[%clk 0:00:30.3]}
51. Kc3 {[%clk 0:00:38.7]} 51... Kf8 {[%clk 0:00:29.3]} 52. Bf5 {[%clk
0:00:38.1]} 52... Rd1 {[%clk 0:00:27.2]} 53. Bxe6 {[%clk 0:00:37.7]} 53... fxe6
{[%clk 0:00:28.1]} 54. Rf3+ {[%clk 0:00:38.4]} 54... Ke7 {[%clk 0:00:28.2]} 55.
Rf6 {[%clk 0:00:39.3]} 55... Re1 {[%clk 0:00:27.9]} 56. Rxh6 {[%clk 0:00:38.9]}
56... Rxe5 {[%clk 0:00:28.5]} 57. Kd4 {[%clk 0:00:39.1]} 57... Re2 {[%clk
0:00:28.5]} 58. c4 {[%clk 0:00:38.9]} 58... bxc4 {[%clk 0:00:21.8]} 59. Kxc4
{[%clk 0:00:39.1]} 59... Kd6 {[%clk 0:00:22.4]} 60. b5 {[%clk 0:00:37.3]} 60...
Re4+ {[%clk 0:00:22.1]} 61. Kd3 {[%clk 0:00:35.9]} 61... Rb4 {[%clk 0:00:22.3]}
62. Rh8 {[%clk 0:00:36.2]} 62... Rxb5 {[%clk 0:00:22.2]} 63. h4 {[%clk
0:00:36.6]} 63... Ke7 {[%clk 0:00:22.6]} 64. g5 {[%clk 0:00:37]} 64... Kf7
{[%clk 0:00:22.9]} 65. Ke4 {[%clk 0:00:37.1]} 65... Kg7 {[%clk 0:00:23.1]} 66.
Rh6 {[%clk 0:00:37.3]} 66... Kf7 {[%clk 0:00:21]} 67. Rf6+ {[%clk 0:00:37]}
67... Ke7 {[%clk 0:00:21.3]} 68. Kf4 {[%clk 0:00:37.5]} 68... Rb4+ {[%clk
0:00:21.7]} 69. Kg3 {[%clk 0:00:37.9]} 69... Rc4 {[%clk 0:00:20.8]} 70. h5
{[%clk 0:00:36.8]} 70... Rc3+ {[%clk 0:00:19.3]} 71. Kg4 {[%clk 0:00:35.7]}
71... Rc4+ {[%clk 0:00:19.8]} 72. Rf4 {[%clk 0:00:36.3]} 72... Rc1 {[%clk
0:00:18.2]} 73. g6 {[%clk 0:00:36.4]} 73... Rg1+ {[%clk 0:00:18.3]} 74. Kh4
{[%clk 0:00:36.9]} 74... e5 {[%clk 0:00:18.1]} 75. Rf7+ {[%clk 0:00:36.8]} 75...
Ke6 {[%clk 0:00:18.6]} 76. Rf8 {[%clk 0:00:36.7]} 76... e4 {[%clk 0:00:19.1]}
77. Re8+ {[%clk 0:00:36.1]} 77... Kf5 {[%clk 0:00:19.3]} 78. Rf8+ {[%clk
0:00:32.2]} 78... Ke5 {[%clk 0:00:18.4]} 79. Rf7 {[%clk 0:00:31.1]} 79... e3
{[%clk 0:00:18.9]} 80. g7 {[%clk 0:00:31.5]} 80... e2 {[%clk 0:00:18.9]} 81.
Re7+ {[%clk 0:00:31.9]} 81... Kf4 {[%clk 0:00:19.3]} 82. Rf7+ {[%clk 0:00:30.6]}
82... Ke5 {[%clk 0:00:19.6]} 83. Re7+ {[%clk 0:00:30.9]} 83... Kf4 {[%clk
0:00:20]} 84. Rf7+ {[%clk 0:00:31.5]} 84... Ke5 {[%clk 0:00:20.4]} 1/2-1/2

[Event "Early-Titled-Tuesday-Blitz-September-05-2023"]
[Site "Chess.com"]
[Date "2023.09.05"]
[Round "3"]
[White "LUISMIGUELOV"]
[Black "Zarinur"]
[Result "0-1"]
[WhiteElo "2077"]
[BlackElo "2530"]
[TimeControl "180+1"]
[EndTime "8:29:03 PDT"]
[Termination "Zarinur won on time"]

1. e4 {[%clk 0:02:58.1]} 1... e5 {[%clk 0:02:59.8]} 2. Nf3 {[%clk 0:02:57.2]}
2... Nc6 {[%clk 0:02:59.9]} 3. d4 {[%clk 0:02:56.9]} 3... exd4 {[%clk
0:02:59.7]} 4. Bc4 {[%clk 0:02:57.5]} 4... Bc5 {[%clk 0:02:59.1]} 5. c3 {[%clk
0:02:56.8]} 5... Nf6 {[%clk 0:02:58.6]} 6. cxd4 {[%clk 0:02:53.2]} 6... Bb4+
{[%clk 0:02:57.9]} 7. Nc3 {[%clk 0:02:53.1]} 7... Nxe4 {[%clk 0:02:57.7]} 8. O-O
{[%clk 0:02:52.3]} 8... Bxc3 {[%clk 0:02:56.9]} 9. d5 {[%clk 0:02:48.9]} 9...
Bf6 {[%clk 0:02:56.4]} 10. Re1 {[%clk 0:02:47.4]} 10... Ne7 {[%clk 0:02:56.3]}
11. Rxe4 {[%clk 0:02:46.6]} 11... d6 {[%clk 0:02:56.2]} 12. Qe2 {[%clk
0:02:41.6]} 12... Bf5 {[%clk 0:02:47.8]} 13. Bb5+ {[%clk 0:02:20]} 13... Kf8
{[%clk 0:02:37.9]} 14. Re3 {[%clk 0:02:11.5]} 14... g6 {[%clk 0:02:21]} 15. Bd2
{[%clk 0:02:07.7]} 15... Kg7 {[%clk 0:02:19]} 16. Bc4 {[%clk 0:01:48.1]} 16...
Bd7 {[%clk 0:02:05.5]} 17. Bc3 {[%clk 0:01:45.6]} 17... Nf5 {[%clk 0:02:04.6]}
18. Re4 {[%clk 0:01:35.2]} 18... Bxc3 {[%clk 0:01:54.1]} 19. bxc3 {[%clk
0:01:34.2]} 19... Qf6 {[%clk 0:01:54.5]} 20. Nd4 {[%clk 0:01:27.8]} 20... Rae8
{[%clk 0:01:52.9]} 21. Nxf5+ {[%clk 0:01:26]} 21... Qxf5 {[%clk 0:01:38.2]} 22.
f3 {[%clk 0:01:17.5]} 22... Rxe4 {[%clk 0:01:24.3]} 23. fxe4 {[%clk 0:01:16.1]}
23... Qe5 {[%clk 0:01:22.8]} 24. Qe3 {[%clk 0:01:12.5]} 24... Re8 {[%clk
0:01:18.8]} 25. Re1 {[%clk 0:01:12.2]} 25... a5 {[%clk 0:01:04.6]} 26. Qd4
{[%clk 0:01:11.6]} 26... b5 {[%clk 0:00:58]} 27. Bd3 {[%clk 0:01:05.2]} 27... c5
{[%clk 0:00:49.4]} 28. dxc6 {[%clk 0:01:00.9]} 28... Bxc6 {[%clk 0:00:46.9]} 29.
Kf2 {[%clk 0:00:58.1]} 29... Kg8 {[%clk 0:00:27.8]} 30. Qxe5 {[%clk 0:00:57]}
30... Rxe5 {[%clk 0:00:21.1]} 31. a3 {[%clk 0:00:56.7]} 31... Rc5 {[%clk
0:00:20.5]} 32. Rc1 {[%clk 0:00:51.9]} 32... b4 {[%clk 0:00:20.2]} 33. axb4
{[%clk 0:00:50.9]} 33... axb4 {[%clk 0:00:20.8]} 34. c4 {[%clk 0:00:47.1]} 34...
d5 {[%clk 0:00:12.2]} 35. exd5 {[%clk 0:00:46.3]} 35... Bxd5 {[%clk 0:00:12.6]}
36. g3 {[%clk 0:00:40.1]} 36... Be6 {[%clk 0:00:11.7]} 37. Rb1 {[%clk
0:00:33.8]} 37... Bxc4 {[%clk 0:00:11.3]} 38. Rc1 {[%clk 0:00:32.1]} 38... b3
{[%clk 0:00:09.5]} 39. Rxc4 {[%clk 0:00:31.6]} 39... Rd5 {[%clk 0:00:10]} 40.
Be4 {[%clk 0:00:29.7]} 40... Rd2+ {[%clk 0:00:09.4]} 41. Ke3 {[%clk 0:00:27.6]}
41... Rxh2 {[%clk 0:00:08.7]} 42. Rb4 {[%clk 0:00:27.2]} 42... b2 {[%clk
0:00:08]} 43. Kd3 {[%clk 0:00:24.4]} 43... Kg7 {[%clk 0:00:08.1]} 44. Kc3 {[%clk
0:00:24.3]} 44... Rh3 {[%clk 0:00:08.3]} 45. Rxb2 {[%clk 0:00:23.1]} 45... Rxg3+
{[%clk 0:00:08.9]} 46. Kd4 {[%clk 0:00:23.2]} 46... h5 {[%clk 0:00:08.1]} 47.
Rb7 {[%clk 0:00:23.3]} 47... g5 {[%clk 0:00:07.5]} 48. Bd5 {[%clk 0:00:23.1]}
48... Rg4+ {[%clk 0:00:08]} 49. Ke5 {[%clk 0:00:21.3]} 49... Rf4 {[%clk
0:00:08.5]} 50. Rb1 {[%clk 0:00:16.7]} 50... h4 {[%clk 0:00:08.8]} 51. Rg1
{[%clk 0:00:15.7]} 51... f6+ {[%clk 0:00:08.7]} 52. Ke6 {[%clk 0:00:13.6]} 52...
Kg6 {[%clk 0:00:09.2]} 53. Bc6 {[%clk 0:00:12.1]} 53... h3 {[%clk 0:00:09.1]}
54. Be8+ {[%clk 0:00:11.5]} 54... Kh6 {[%clk 0:00:09.7]} 55. Kf7 {[%clk
0:00:10.7]} 55... g4 {[%clk 0:00:08]} 56. Bd7 {[%clk 0:00:09.6]} 56... h2 {[%clk
0:00:07.5]} 57. Rh1 {[%clk 0:00:09.2]} 57... g3 {[%clk 0:00:07.9]} 58. Bc6
{[%clk 0:00:09.3]} 58... Kg5 {[%clk 0:00:08.2]} 59. Bg2 {[%clk 0:00:07.9]} 59...
Rf2 {[%clk 0:00:08.7]} 60. Bd5 {[%clk 0:00:07]} 60... g2 {[%clk 0:00:09.1]} 61.
Bxg2 {[%clk 0:00:07]} 61... Rxg2 {[%clk 0:00:09.8]} 62. Ke6 {[%clk 0:00:05.7]}
62... Kg4 {[%clk 0:00:09.6]} 63. Kd5 {[%clk 0:00:04.7]} 63... Kg3 {[%clk
0:00:09.9]} 64. Ke6 {[%clk 0:00:02.9]} 64... Rg1 {[%clk 0:00:09.8]} 0-1

[Event "Early-Titled-Tuesday-Blitz-September-05-2023"]
[Site "Chess.com"]
[Date "2023.09.05"]
[Round "3"]
[White "RobertoJBM"]
[Black "bescmelasti"]
[Result "0-1"]
[WhiteElo "2806"]
[BlackElo "2611"]
[TimeControl "180+1"]
[EndTime "8:29:04 PDT"]
[Termination "bescmelasti won by checkmate"]

1. d4 {[%clk 0:03:00]} 1... Nf6 {[%clk 0:02:59.9]} 2. c4 {[%clk 0:02:55.9]} 2...
e6 {[%clk 0:03:00.2]} 3. Nf3 {[%clk 0:02:55.4]} 3... d5 {[%clk 0:03:00.2]} 4.
Nc3 {[%clk 0:02:54.1]} 4... dxc4 {[%clk 0:02:58.6]} 5. e3 {[%clk 0:02:51.7]}
5... a6 {[%clk 0:02:56.7]} 6. a4 {[%clk 0:02:50.9]} 6... c5 {[%clk 0:02:56.8]}
7. Bxc4 {[%clk 0:02:50.3]} 7... Nc6 {[%clk 0:02:57.4]} 8. O-O {[%clk 0:02:50.1]}
8... Be7 {[%clk 0:02:57.6]} 9. Qe2 {[%clk 0:02:50]} 9... cxd4 {[%clk 0:02:57.7]}
10. Rd1 {[%clk 0:02:49.3]} 10... e5 {[%clk 0:02:58.3]} 11. exd4 {[%clk
0:02:44.8]} 11... exd4 {[%clk 0:02:59.2]} 12. Be3 {[%clk 0:02:25.7]} 12... Bg4
{[%clk 0:02:58.3]} 13. h3 {[%clk 0:02:24.3]} 13... Bxf3 {[%clk 0:02:51.9]} 14.
Qxf3 {[%clk 0:02:25.2]} 14... O-O {[%clk 0:02:36.4]} 15. Bf4 {[%clk 0:02:12.4]}
15... Bd6 {[%clk 0:02:29.4]} 16. Ne2 {[%clk 0:02:02.8]} 16... Bxf4 {[%clk
0:02:16.1]} 17. Qxf4 {[%clk 0:02:03.7]} 17... Qb6 {[%clk 0:02:05.2]} 18. Nxd4
{[%clk 0:01:54.7]} 18... Qxb2 {[%clk 0:01:56]} 19. Rab1 {[%clk 0:01:53.9]} 19...
Qc3 {[%clk 0:01:55.7]} 20. Nf5 {[%clk 0:01:51.3]} 20... Qe5 {[%clk 0:01:47.6]}
21. Qf3 {[%clk 0:01:12.8]} 21... Rab8 {[%clk 0:01:29.5]} 22. Nd6 {[%clk
0:01:03.1]} 22... Nd4 {[%clk 0:01:15.6]} 23. Qg3 {[%clk 0:01:00.9]} 23... Qc5
{[%clk 0:00:58.4]} 24. Rxd4 {[%clk 0:00:49.7]} 24... Qxd4 {[%clk 0:00:52.7]} 25.
Nf5 {[%clk 0:00:49.6]} 25... Nh5 {[%clk 0:00:47.1]} 26. Nxd4 {[%clk 0:00:28.7]}
26... Nxg3 {[%clk 0:00:47.4]} 27. fxg3 {[%clk 0:00:29.6]} 27... g6 {[%clk
0:00:47.8]} 28. Kf2 {[%clk 0:00:28.6]} 28... Rbc8 {[%clk 0:00:47.7]} 29. Be2
{[%clk 0:00:28.8]} 29... Rfd8 {[%clk 0:00:46.8]} 30. Nf3 {[%clk 0:00:28.8]}
30... Rc7 {[%clk 0:00:44.4]} 31. Rb2 {[%clk 0:00:29.1]} 31... Kg7 {[%clk
0:00:43.8]} 32. g4 {[%clk 0:00:29.1]} 32... h6 {[%clk 0:00:44]} 33. h4 {[%clk
0:00:29.3]} 33... Rd5 {[%clk 0:00:42.4]} 34. g5 {[%clk 0:00:29.2]} 34... hxg5
{[%clk 0:00:42.4]} 35. hxg5 {[%clk 0:00:30.1]} 35... Ra5 {[%clk 0:00:42.4]} 36.
Rb4 {[%clk 0:00:30.3]} 36... Re7 {[%clk 0:00:40.8]} 37. Bd3 {[%clk 0:00:30.1]}
37... Rd5 {[%clk 0:00:39.5]} 38. Be4 {[%clk 0:00:30.3]} 38... Rdd7 {[%clk
0:00:36.4]} 39. Ke3 {[%clk 0:00:30.7]} 39... f5 {[%clk 0:00:36.1]} 40. gxf6+
{[%clk 0:00:30.7]} 40... Kxf6 {[%clk 0:00:37]} 41. Kf4 {[%clk 0:00:31]} 41...
Rc7 {[%clk 0:00:35]} 42. g4 {[%clk 0:00:30.5]} 42... Kg7 {[%clk 0:00:33.4]} 43.
Ne5 {[%clk 0:00:28.6]} 43... Rc1 {[%clk 0:00:30.3]} 44. Nf3 {[%clk 0:00:25.3]}
44... Rcc7 {[%clk 0:00:25.2]} 45. Rb6 {[%clk 0:00:21.6]} 45... Rf7+ {[%clk
0:00:25.3]} 46. Kg3 {[%clk 0:00:18.9]} 46... Rf6 {[%clk 0:00:22]} 47. Rxb7
{[%clk 0:00:19]} 47... Rxb7 {[%clk 0:00:21.8]} 48. Bxb7 {[%clk 0:00:19.9]} 48...
Rb6 {[%clk 0:00:20.4]} 49. Be4 {[%clk 0:00:17.2]} 49... Rb4 {[%clk 0:00:20.1]}
50. Bc2 {[%clk 0:00:17]} 50... Rc4 {[%clk 0:00:19.8]} 51. Bb3 {[%clk 0:00:17.2]}
51... Rb4 {[%clk 0:00:18.8]} 52. Bd1 {[%clk 0:00:17.5]} 52... Rb1 {[%clk
0:00:17.7]} 53. Be2 {[%clk 0:00:17.8]} 53... Rb4 {[%clk 0:00:17.6]} 54. Bd1
{[%clk 0:00:14.3]} 54... Rb1 {[%clk 0:00:17.7]} 55. Bc2 {[%clk 0:00:14.3]} 55...
Rb2 {[%clk 0:00:17.8]} 56. Nd4 {[%clk 0:00:13.9]} 56... Rb4 {[%clk 0:00:17.6]}
57. Ne2 {[%clk 0:00:10]} 57... Rb2 {[%clk 0:00:16.6]} 58. Bd3 {[%clk 0:00:10.1]}
58... Rb3 {[%clk 0:00:13.4]} 59. Nc1 {[%clk 0:00:07.6]} 59... Rc3 {[%clk
0:00:13.7]} 60. Kf4 {[%clk 0:00:08.1]} 60... Rxc1 {[%clk 0:00:13.9]} 61. Bxa6
{[%clk 0:00:08.8]} 61... Ra1 {[%clk 0:00:12.3]} 62. Bb5 {[%clk 0:00:09.2]} 62...
Kf6 {[%clk 0:00:12.9]} 63. g5+ {[%clk 0:00:09.5]} 63... Ke6 {[%clk 0:00:12.9]}
64. Ke4 {[%clk 0:00:10]} 64... Rg1 {[%clk 0:00:10.6]} 65. Kf4 {[%clk 0:00:09.8]}
65... Rb1 {[%clk 0:00:08.3]} 66. Be8 {[%clk 0:00:09.5]} 66... Rb4+ {[%clk
0:00:08.6]} 67. Ke3 {[%clk 0:00:09.3]} 67... Kf5 {[%clk 0:00:09.1]} 68. a5
{[%clk 0:00:09]} 68... Rb3+ {[%clk 0:00:08.5]} 69. Kd4 {[%clk 0:00:09.2]} 69...
Ra3 {[%clk 0:00:09.4]} 70. Bd7+ {[%clk 0:00:07]} 70... Kxg5 {[%clk 0:00:08.7]}
71. Ke4 {[%clk 0:00:07.6]} 71... Rxa5 {[%clk 0:00:09.3]} 72. Kf3 {[%clk
0:00:08.3]} 72... Ra3+ {[%clk 0:00:09.6]} 73. Kg2 {[%clk 0:00:08.4]} 73... Kf4
{[%clk 0:00:09.8]} 74. Be8 {[%clk 0:00:09.2]} 74... g5 {[%clk 0:00:10.7]} 75.
Bh5 {[%clk 0:00:09.4]} 75... g4 {[%clk 0:00:11.6]} 76. Be8 {[%clk 0:00:09.8]}
76... Ra2+ {[%clk 0:00:11.6]} 77. Kg1 {[%clk 0:00:10.7]} 77... Rc2 {[%clk
0:00:09.3]} 78. Kf1 {[%clk 0:00:11.6]} 78... Kf3 {[%clk 0:00:09]} 79. Bg6 {[%clk
0:00:12.4]} 79... Rc1# {[%clk 0:00:09]} 0-1

[Event "Early-Titled-Tuesday-Blitz-September-05-2023"]
[Site "Chess.com"]
[Date "2023.09.05"]
[Round "3"]
[White "wannabe2700"]
[Black "Haykoooo0o"]
[Result "0-1"]
[WhiteElo "2630"]
[BlackElo "2478"]
[TimeControl "180+1"]
[EndTime "8:29:16 PDT"]
[Termination "Haykoooo0o won by checkmate"]

1. b3 {[%clk 0:03:00.9]} 1... e5 {[%clk 0:02:58.6]} 2. Bb2 {[%clk 0:03:01.3]}
2... Nc6 {[%clk 0:02:58.2]} 3. e3 {[%clk 0:03:01.1]} 3... Nf6 {[%clk 0:02:58.7]}
4. Nf3 {[%clk 0:03:01.3]} 4... Bd6 {[%clk 0:02:58.4]} 5. d4 {[%clk 0:02:55.3]}
5... exd4 {[%clk 0:02:53.4]} 6. Nxd4 {[%clk 0:02:48.5]} 6... O-O {[%clk
0:02:53.9]} 7. Bd3 {[%clk 0:02:34.6]} 7... Ne5 {[%clk 0:02:46.8]} 8. Nf5 {[%clk
0:02:22.2]} 8... Nxd3+ {[%clk 0:02:42.8]} 9. Qxd3 {[%clk 0:02:23.1]} 9... Bb4+
{[%clk 0:02:39.1]} 10. Nd2 {[%clk 0:02:19.3]} 10... d5 {[%clk 0:02:35.3]} 11.
O-O-O {[%clk 0:02:11.7]} 11... c6 {[%clk 0:02:15.4]} 12. g4 {[%clk 0:02:09.4]}
12... Bxf5 {[%clk 0:01:52.6]} 13. gxf5 {[%clk 0:02:03.8]} 13... Bxd2+ {[%clk
0:01:43.8]} 14. Qxd2 {[%clk 0:02:02.1]} 14... Ne4 {[%clk 0:01:44.5]} 15. Qd4
{[%clk 0:01:59.1]} 15... f6 {[%clk 0:01:44.5]} 16. Rhf1 {[%clk 0:01:52.9]} 16...
Qb6 {[%clk 0:01:44.2]} 17. Qd3 {[%clk 0:01:49.5]} 17... Rfe8 {[%clk 0:01:43.2]}
18. f3 {[%clk 0:01:46.3]} 18... Nd6 {[%clk 0:01:40.2]} 19. e4 {[%clk 0:01:40.2]}
19... Rad8 {[%clk 0:01:24.8]} 20. exd5 {[%clk 0:01:39.8]} 20... Nf7 {[%clk
0:01:22.6]} 21. Qc4 {[%clk 0:01:39.4]} 21... cxd5 {[%clk 0:01:04.7]} 22. Rxd5
{[%clk 0:01:39]} 22... Rxd5 {[%clk 0:00:55.4]} 23. Qxd5 {[%clk 0:01:39.9]} 23...
Qe3+ {[%clk 0:00:49.8]} 24. Kb1 {[%clk 0:01:04.4]} 24... Qe2 {[%clk 0:00:35.9]}
25. Rc1 {[%clk 0:00:57.4]} 25... b6 {[%clk 0:00:32]} 26. h4 {[%clk 0:00:55.6]}
26... Rd8 {[%clk 0:00:29.2]} 27. Qe4 {[%clk 0:00:51.3]} 27... Qxe4 {[%clk
0:00:25]} 28. fxe4 {[%clk 0:00:51.5]} 28... Re8 {[%clk 0:00:25.7]} 29. Rg1
{[%clk 0:00:43.1]} 29... Kf8 {[%clk 0:00:24]} 30. Rg4 {[%clk 0:00:35.3]} 30...
h5 {[%clk 0:00:24.6]} 31. Ba3+ {[%clk 0:00:27.9]} 31... Kg8 {[%clk 0:00:24.3]}
32. Rf4 {[%clk 0:00:28.4]} 32... Ne5 {[%clk 0:00:23.7]} 33. Kc1 {[%clk
0:00:27.7]} 33... Ng4 {[%clk 0:00:21.1]} 34. Kd2 {[%clk 0:00:26.5]} 34... Kf7
{[%clk 0:00:20.6]} 35. Ke2 {[%clk 0:00:25.9]} 35... Re5 {[%clk 0:00:19.4]} 36.
Bb2 {[%clk 0:00:25.3]} 36... Ra5 {[%clk 0:00:20]} 37. a4 {[%clk 0:00:25.6]}
37... Rc5 {[%clk 0:00:20.7]} 38. c4 {[%clk 0:00:26.2]} 38... Rc7 {[%clk
0:00:20.3]} 39. Kd3 {[%clk 0:00:21.9]} 39... Rd7+ {[%clk 0:00:20.7]} 40. Kc2
{[%clk 0:00:22.3]} 40... Ne3+ {[%clk 0:00:19.1]} 41. Kc3 {[%clk 0:00:22.5]}
41... Nd1+ {[%clk 0:00:18.1]} 42. Kc2 {[%clk 0:00:22.6]} 42... Ne3+ {[%clk
0:00:18]} 43. Kb1 {[%clk 0:00:23]} 43... Rd1+ {[%clk 0:00:17.4]} 44. Bc1 {[%clk
0:00:23.3]} 44... Rh1 {[%clk 0:00:13.2]} 45. Kb2 {[%clk 0:00:22.2]} 45... Ng4
{[%clk 0:00:12.3]} 46. b4 {[%clk 0:00:19.8]} 46... Rxh4 {[%clk 0:00:12.6]} 47.
c5 {[%clk 0:00:19.2]} 47... Rh2+ {[%clk 0:00:13.1]} 48. Kb3 {[%clk 0:00:19.5]}
48... bxc5 {[%clk 0:00:12.4]} 49. bxc5 {[%clk 0:00:19.8]} 49... Ne5 {[%clk
0:00:11.5]} 50. Bb2 {[%clk 0:00:19]} 50... Rxb2+ {[%clk 0:00:11]} 51. Kc3 {[%clk
0:00:19.5]} 51... Rb1 {[%clk 0:00:10.1]} 52. Kc2 {[%clk 0:00:18.5]} 52... Rb4
{[%clk 0:00:10.8]} 53. Rh4 {[%clk 0:00:17.1]} 53... Rc4+ {[%clk 0:00:11.1]} 54.
Kb3 {[%clk 0:00:17.8]} 54... Rxc5 {[%clk 0:00:11.8]} 55. Rxh5 {[%clk 0:00:18.4]}
55... a5 {[%clk 0:00:12.1]} 56. Rh8 {[%clk 0:00:18.4]} 56... Rc4 {[%clk
0:00:12]} 57. Ra8 {[%clk 0:00:18.1]} 57... Rxe4 {[%clk 0:00:12.1]} 58. Rxa5
{[%clk 0:00:18.5]} 58... Re3+ {[%clk 0:00:12.5]} 59. Kc2 {[%clk 0:00:18]} 59...
Rf3 {[%clk 0:00:12]} 60. Rc5 {[%clk 0:00:17.9]} 60... Rxf5 {[%clk 0:00:11.6]}
61. a5 {[%clk 0:00:18.6]} 61... Rf2+ {[%clk 0:00:12.2]} 62. Kb3 {[%clk
0:00:19.2]} 62... Rf3+ {[%clk 0:00:12.2]} 63. Ka4 {[%clk 0:00:19.7]} 63... Rf1
{[%clk 0:00:11.9]} 64. a6 {[%clk 0:00:20.1]} 64... Ra1+ {[%clk 0:00:12.3]} 65.
Kb5 {[%clk 0:00:20.6]} 65... g5 {[%clk 0:00:12.3]} 66. Rc7+ {[%clk 0:00:18.8]}
66... Ke6 {[%clk 0:00:11.9]} 67. a7 {[%clk 0:00:19.7]} 67... g4 {[%clk
0:00:12.2]} 68. Rg7 {[%clk 0:00:19.1]} 68... Kf5 {[%clk 0:00:11.8]} 69. Kb6
{[%clk 0:00:19.3]} 69... Kf4 {[%clk 0:00:10.3]} 70. Kb7 {[%clk 0:00:19.8]} 70...
g3 {[%clk 0:00:09.7]} 71. a8=Q {[%clk 0:00:20]} 71... Rxa8 {[%clk 0:00:10.4]}
72. Kxa8 {[%clk 0:00:20.9]} 72... Ng4 {[%clk 0:00:10.6]} 73. Rc7 {[%clk
0:00:18.4]} 73... g2 {[%clk 0:00:10.5]} 74. Rc1 {[%clk 0:00:18.5]} 74... Kg3
{[%clk 0:00:10.5]} 75. Kb7 {[%clk 0:00:17.9]} 75... f5 {[%clk 0:00:10.6]} 76.
Kc6 {[%clk 0:00:18.2]} 76... f4 {[%clk 0:00:11.5]} 77. Kd5 {[%clk 0:00:18.7]}
77... f3 {[%clk 0:00:12.4]} 78. Ke4 {[%clk 0:00:19.1]} 78... f2 {[%clk
0:00:11.1]} 79. Rc3+ {[%clk 0:00:19.6]} 79... Kh4 {[%clk 0:00:11]} 80. Rc8
{[%clk 0:00:18.9]} 80... f1=Q {[%clk 0:00:10.5]} 81. Rh8+ {[%clk 0:00:19.2]}
81... Kg3 {[%clk 0:00:11.1]} 82. Kd5 {[%clk 0:00:17.4]} 82... g1=Q {[%clk
0:00:10.5]} 83. Ke6 {[%clk 0:00:17.6]} 83... Qe3+ {[%clk 0:00:10.1]} 84. Kd7
{[%clk 0:00:17.5]} 84... Qd1+ {[%clk 0:00:10.5]} 85. Kc6 {[%clk 0:00:17.7]}
85... Qc3+ {[%clk 0:00:11]} 86. Kb7 {[%clk 0:00:18.2]} 86... Qb1+ {[%clk
0:00:11.7]} 87. Ka7 {[%clk 0:00:18.9]} 87... Qa3# {[%clk 0:00:12.4]} 0-1